fUSD/lending_fUSD_20260520
["ID","MTS","AMOUNT","RATE_DAILY","PERIOD"]
[422658797,1779219038000,-4170.3749,0.00012904,2]
[422658810,1779219038000,-500.0,0.00013042,2]
[422658868,1779219038000,-165.63,0.00013665,2]
[422658857,1779219038000,-150.0,0.00013599,2]
[422658869,1779219038000,-1590.92179969,0.00013698,2]
[422658859,1779219038000,-4930.26743241,0.00013634,2]
[422658871,1779219038000,-1758.69214084,0.00013698,2]
[422658873,1779219038000,-1878.58353823,0.00013698,2]
[422658855,1779219038000,-15379.88741476,0.00013598,2]
[422658861,1779219038000,-1000.0,0.00013648,2]
[422658876,1779219038000,-500.0,0.00013698,2]
[422658878,1779219038000,-500.0,0.00013698,2]
[422658882,1779219038000,-500.0,0.00013698,2]
[422658880,1779219038000,-516.09371618,0.00013698,2]
[422658808,1779219038000,-1941.39,0.00013023,2]
[422658884,1779219038000,-500.0,0.00013698,2]
[422658865,1779219038000,-150.0,0.00013654,2]
[422658853,1779219038000,-500.0,0.0001359,2]
[422658863,1779219038000,-150.0,0.00013654,2]
[422658837,1779219038000,-150.0,0.00013488,2]
[422658852,1779219038000,-27915.4960947,0.0001358,2]
[422658812,1779219038000,-27915.4960947,0.00013052,2]
[422658825,1779219038000,-4930.26743241,0.00013381,2]
[422658814,1779219038000,-4930.26743241,0.00013127,2]
[422658827,1779219038000,-166.81,0.00013467,2]
[422658843,1779219038000,-150.0,0.00013488,2]
[422658833,1779219038000,-150.0,0.00013488,2]
[422658829,1779219038000,-150.0,0.00013488,2]
[422658831,1779219038000,-150.0,0.00013488,2]
[422658835,1779219038000,-150.0,0.00013488,2]
[422658845,1779219038000,-150.0,0.00013488,2]
[422658850,1779219038000,-150.0,0.00013543,2]
[422658847,1779219038000,-150.0,0.00013488,2]
[422658839,1779219038000,-153.09099208,0.00013488,2]
[422658841,1779219038000,-152.35107503,0.00013488,2]
[422658950,1779219039000,-838.37,0.00013698,2]
[422658944,1779219039000,-838.37,0.00013698,2]
[422658941,1779219039000,-838.37,0.00013698,2]
[422658945,1779219039000,-838.37,0.00013698,2]
[422658930,1779219039000,-838.37,0.00013698,2]
[422658934,1779219039000,-838.37,0.00013698,2]
[422658940,1779219039000,-838.37,0.00013698,2]
[422658936,1779219039000,-838.37,0.00013698,2]
[422658937,1779219039000,-838.37,0.00013698,2]
[422658948,1779219039000,-838.37,0.00013698,2]
[422658954,1779219039000,-838.37,0.00013698,2]
[422658969,1779219039000,-838.45471857,0.00013698,2]
[422658956,1779219039000,-838.37,0.00013698,2]
[422658967,1779219039000,-838.37,0.00013698,2]
[422658970,1779219039000,-1285.89,0.00013698,2]
[422658958,1779219039000,-838.37,0.00013698,2]
[422658962,1779219039000,-838.37,0.00013698,2]
[422658971,1779219039000,-1601.2,0.00013698,2]
[422658972,1779219039000,-500.0,0.00013698,2]
[422658960,1779219039000,-838.37,0.00013698,2]
[422658964,1779219039000,-838.37,0.00013698,2]
[422658932,1779219039000,-838.37,0.00013698,2]
[422658965,1779219039000,-838.37,0.00013698,2]
[422658952,1779219039000,-838.37,0.00013698,2]
[422658925,1779219039000,-838.37,0.00013698,2]
[422658900,1779219039000,-500.0,0.00013698,2]
[422658926,1779219039000,-838.37,0.00013698,2]
[422658974,1779219039000,-500.0,0.00013698,2]
[422658886,1779219039000,-500.0,0.00013698,2]
[422658896,1779219039000,-500.0,0.00013698,2]
[422658890,1779219039000,-500.0,0.00013698,2]
[422658887,1779219039000,-500.0,0.00013698,2]
[422658895,1779219039000,-500.0,0.00013698,2]
[422658889,1779219039000,-509.06477309,0.00013698,2]
[422658891,1779219039000,-500.0,0.00013698,2]
[422658892,1779219039000,-500.0,0.00013698,2]
[422658894,1779219039000,-500.0,0.00013698,2]
[422658893,1779219039000,-500.0,0.00013698,2]
[422658928,1779219039000,-838.37,0.00013698,2]
[422658901,1779219039000,-500.0,0.00013698,2]
[422658914,1779219039000,-500.0,0.00013698,2]
[422658916,1779219039000,-500.0,0.00013698,2]
[422658918,1779219039000,-500.0,0.00013698,2]
[422658907,1779219039000,-500.0,0.00013698,2]
[422658904,1779219039000,-500.0,0.00013698,2]
[422658911,1779219039000,-500.0,0.00013698,2]
[422658905,1779219039000,-500.0,0.00013698,2]
[422658922,1779219039000,-534.66366133,0.00013698,2]
[422658909,1779219039000,-500.0,0.00013698,2]
[422658913,1779219039000,-500.0,0.00013698,2]
[422658920,1779219039000,-500.0,0.00013698,2]
[422658898,1779219039000,-500.0,0.00013698,2]
[422658973,1779219039000,-500.0,0.00013698,2]
[422658998,1779219039000,-1841.27884536,0.00013761,2]
[422658976,1779219039000,-500.0,0.00013698,2]
[422659006,1779219039000,-500.0,0.00013864,2]
[422659005,1779219039000,-150.0,0.00013862,2]
[422659009,1779219039000,-500.0,0.00013887,2]
[422659008,1779219039000,-500.0,0.00013887,2]
[422659010,1779219039000,-500.0,0.00013887,2]
[422659011,1779219039000,-500.0,0.00013887,2]
[422659013,1779219039000,-500.0,0.00013887,2]
[422659017,1779219039000,-150.0,0.00013932,2]
[422659014,1779219039000,-4930.26743241,0.00013887,2]
[422659012,1779219039000,-500.0,0.00013887,2]
[422659015,1779219039000,-150.0,0.00013916,2]
[422659007,1779219039000,-150.0,0.00013876,2]
[422659019,1779219039000,-150.0,0.00013987,2]
[422659020,1779219039000,-150.0,0.00013987,2]
[422659022,1779219039000,-34363.75804263,0.0001399,2]
[422659021,1779219039000,-150.0,0.00013987,2]
[422659023,1779219039000,-250.0,0.00014,2]
[422659024,1779219039000,-150.0,0.00014043,2]
[422659026,1779219039000,-150.0,0.00014098,2]
[422659027,1779219039000,-27915.4960947,0.00014108,2]
[422659025,1779219039000,-433.0,0.00014088,2]
[422659028,1779219039000,-166.66,0.0001411,2]
[422659029,1779219039000,-150.0,0.0001413,2]
[422658975,1779219039000,-500.0,0.00013698,2]
[422659018,1779219039000,-166.66,0.00013973,2]
[422659003,1779219039000,-432.83,0.00013836,2]
[422659016,1779219039000,-15379.88741476,0.00013923,2]
[422659000,1779219039000,-150.0,0.00013821,2]
[422658978,1779219039000,-500.0,0.00013698,2]
[422659004,1779219039000,-27915.4960947,0.00013844,2]
[422658979,1779219039000,-425.07609623,0.00013698,2]
[422658980,1779219039000,-500.0,0.00013698,2]
[422658983,1779219039000,-500.0,0.00013698,2]
[422658982,1779219039000,-500.0,0.00013698,2]
[422658981,1779219039000,-500.0,0.00013698,2]
[422658977,1779219039000,-500.0,0.00013698,2]
[422658988,1779219039000,-166.66,0.00013699,2]
[422658987,1779219039000,-399.8127821,0.00013698,2]
[422658985,1779219039000,-500.0,0.00013698,2]
[422658984,1779219039000,-500.0,0.00013698,2]
[422658986,1779219039000,-500.0,0.00013698,2]
[422658995,1779219039000,-167.526854,0.0001371,2]
[422658990,1779219039000,-754.48,0.00013699,2]
[422658991,1779219039000,-546.34,0.00013699,2]
[422658993,1779219039000,-150.0,0.0001371,2]
[422658992,1779219039000,-150.0,0.00013702,2]
[422658994,1779219039000,-245.008899,0.0001371,2]
[422658996,1779219039000,-500.0,0.00013742,2]
[422659002,1779219039000,-166.66,0.00013836,2]
[422658997,1779219039000,-529.63722189,0.00013761,2]
[422658999,1779219039000,-150.0,0.00013765,2]
[422658989,1779219039000,-200.0,0.00013699,2]
[422659001,1779219039000,-150.0,0.00013821,2]
[422659071,1779219040000,-438.0,0.00014209,2]
[422659063,1779219040000,-190.37436832,0.00014209,2]
[422659072,1779219040000,-200.0,0.00014209,2]
[422659068,1779219040000,-150.0,0.00014209,2]
[422659070,1779219040000,-150.0,0.00014209,2]
[422659064,1779219040000,-438.0,0.00014209,2]
[422659067,1779219040000,-438.0,0.00014209,2]
[422659065,1779219040000,-438.0,0.00014209,2]
[422659066,1779219040000,-438.0,0.00014209,2]
[422659074,1779219040000,-150.0,0.00014209,2]
[422659069,1779219040000,-438.0,0.00014209,2]
[422659073,1779219040000,-438.0,0.00014209,2]
[422659086,1779219040000,-210.23455429,0.00014209,2]
[422659076,1779219040000,-438.0,0.00014209,2]
[422659081,1779219040000,-150.0,0.00014209,2]
[422659080,1779219040000,-438.0,0.00014209,2]
[422659077,1779219040000,-438.0,0.00014209,2]
[422659079,1779219040000,-438.0,0.00014209,2]
[422659078,1779219040000,-438.0,0.00014209,2]
[422659087,1779219040000,-438.0,0.00014209,2]
[422659083,1779219040000,-150.0,0.00014209,2]
[422659085,1779219040000,-438.0,0.00014209,2]
[422659084,1779219040000,-150.0,0.00014209,2]
[422659088,1779219040000,-438.0,0.00014209,2]
[422659062,1779219040000,-438.0,0.00014209,2]
[422659075,1779219040000,-438.0,0.00014209,2]
[422659061,1779219040000,-500.0,0.00014209,2]
[422659032,1779219040000,-4930.26743241,0.0001414,2]
[422659058,1779219040000,-438.0,0.00014209,2]
[422659030,1779219040000,-500.0,0.00014138,2]
[422659031,1779219040000,-529.63722189,0.0001414,2]
[422659034,1779219040000,-150.0,0.00014154,2]
[422659033,1779219040000,-150.0,0.00014154,2]
[422659036,1779219040000,-500.0,0.00014209,2]
[422659037,1779219040000,-500.0,0.00014209,2]
[422659038,1779219040000,-500.0,0.00014209,2]
[422659035,1779219040000,-166.81,0.0001417,2]
[422659040,1779219040000,-632.65490177,0.00014209,2]
[422659039,1779219040000,-500.0,0.00014209,2]
[422659041,1779219040000,-177.01992321,0.00014209,2]
[422659044,1779219040000,-500.0,0.00014209,2]
[422659060,1779219040000,-438.0,0.00014209,2]
[422659043,1779219040000,-150.0,0.00014209,2]
[422659042,1779219040000,-150.0,0.00014209,2]
[422659048,1779219040000,-150.0,0.00014209,2]
[422659046,1779219040000,-500.0,0.00014209,2]
[422659047,1779219040000,-392.96069737,0.00014209,2]
[422659049,1779219040000,-150.74815113,0.00014209,2]
[422659050,1779219040000,-500.0,0.00014209,2]
[422659051,1779219040000,-508.14097972,0.00014209,2]
[422659053,1779219040000,-150.0,0.00014209,2]
[422659059,1779219040000,-500.0,0.00014209,2]
[422659054,1779219040000,-500.0,0.00014209,2]
[422659056,1779219040000,-500.0,0.00014209,2]
[422659057,1779219040000,-500.0,0.00014209,2]
[422659045,1779219040000,-214.22528082,0.00014209,2]
[422659089,1779219040000,-150.0,0.00014209,2]
[422659082,1779219040000,-150.0,0.00014209,2]
[422659092,1779219040000,-438.0,0.00014209,2]
[422659124,1779219040000,-560.0,0.00014209,2]
[422659123,1779219040000,-560.0,0.00014209,2]
[422659125,1779219040000,-150.0,0.00014209,2]
[422659134,1779219040000,-150.0,0.0001432,2]
[422659126,1779219040000,-150.0,0.00014237,2]
[422659131,1779219040000,-150.0,0.00014265,2]
[422659128,1779219040000,-150.0,0.00014237,2]
[422659127,1779219040000,-150.0,0.00014237,2]
[422659132,1779219040000,-2000.0,0.000143,2]
[422659129,1779219040000,-166.66,0.00014247,2]
[422659130,1779219040000,-15379.88741476,0.00014249,2]
[422659133,1779219040000,-315.831784,0.00014305,2]
[422659122,1779219040000,-440.41367818,0.00014209,2]
[422659135,1779219040000,-150.0,0.0001432,2]
[422659137,1779219040000,-150.0,0.00014344,2]
[422659143,1779219040000,-500.0,0.00014412,2]
[422659144,1779219040000,-150.0,0.00014431,2]
[422659140,1779219040000,-150.0,0.00014376,2]
[422659141,1779219040000,-166.66,0.00014384,2]
[422659139,1779219040000,-27915.4960947,0.00014372,2]
[422659148,1779219040000,-150.0,0.00014452,2]
[422659142,1779219040000,-4930.26743241,0.00014394,2]
[422659145,1779219040000,-150.0,0.00014452,2]
[422659146,1779219040000,-500.0,0.00014452,2]
[422659149,1779219040000,-580.00261472,0.00014452,2]
[422659090,1779219040000,-150.0,0.00014209,2]
[422659138,1779219040000,-165.63,0.00014348,2]
[422659118,1779219040000,-560.0,0.00014209,2]
[422659136,1779219040000,-2351.0,0.00014325,2]
[422659120,1779219040000,-560.0,0.00014209,2]
[422659119,1779219040000,-438.0,0.00014209,2]
[422659091,1779219040000,-200.0,0.00014209,2]
[422659094,1779219040000,-150.0,0.00014209,2]
[422659093,1779219040000,-150.0,0.00014209,2]
[422659096,1779219040000,-150.0,0.00014209,2]
[422659095,1779219040000,-150.0,0.00014209,2]
[422659098,1779219040000,-250.0,0.00014209,2]
[422659097,1779219040000,-150.0,0.00014209,2]
[422659100,1779219040000,-560.0,0.00014209,2]
[422659101,1779219040000,-560.0,0.00014209,2]
[422659102,1779219040000,-560.0,0.00014209,2]
[422659103,1779219040000,-560.0,0.00014209,2]
[422659105,1779219040000,-560.0,0.00014209,2]
[422659107,1779219040000,-560.0,0.00014209,2]
[422659099,1779219040000,-438.0,0.00014209,2]
[422659104,1779219040000,-560.0,0.00014209,2]
[422659113,1779219040000,-560.0,0.00014209,2]
[422659117,1779219040000,-560.0,0.00014209,2]
[422659115,1779219040000,-560.0,0.00014209,2]
[422659111,1779219040000,-560.0,0.00014209,2]
[422659121,1779219040000,-560.0,0.00014209,2]
[422659116,1779219040000,-560.0,0.00014209,2]
[422659114,1779219040000,-560.0,0.00014209,2]
[422659110,1779219040000,-560.0,0.00014209,2]
[422659109,1779219040000,-560.0,0.00014209,2]
[422659108,1779219040000,-560.0,0.00014209,2]
[422659106,1779219040000,-560.0,0.00014209,2]
[422659112,1779219040000,-438.0,0.00014209,2]
[422659196,1779219041000,-500.0,0.00014452,2]
[422659203,1779219041000,-956.0,0.00014452,2]
[422659200,1779219041000,-956.0,0.00014452,2]
[422659195,1779219041000,-500.0,0.00014452,2]
[422659198,1779219041000,-500.0,0.00014452,2]
[422659197,1779219041000,-500.0,0.00014452,2]
[422659190,1779219041000,-551.0,0.00014452,2]
[422659193,1779219041000,-500.0,0.00014452,2]
[422659189,1779219041000,-551.0,0.00014452,2]
[422659191,1779219041000,-551.0,0.00014452,2]
[422659184,1779219041000,-551.0,0.00014452,2]
[422659183,1779219041000,-551.0,0.00014452,2]
[422659194,1779219041000,-500.0,0.00014452,2]
[422659202,1779219041000,-551.0,0.00014452,2]
[422659208,1779219041000,-956.0,0.00014452,2]
[422659199,1779219041000,-500.0,0.00014452,2]
[422659205,1779219041000,-956.0,0.00014452,2]
[422659201,1779219041000,-500.0,0.00014452,2]
[422659206,1779219041000,-500.0,0.00014452,2]
[422659207,1779219041000,-500.0,0.00014452,2]
[422659209,1779219041000,-559.04154827,0.00014452,2]
[422659211,1779219041000,-956.0,0.00014452,2]
[422659215,1779219041000,-956.0,0.00014452,2]
[422659214,1779219041000,-956.0,0.00014452,2]
[422659213,1779219041000,-956.0,0.00014452,2]
[422659210,1779219041000,-956.0,0.00014452,2]
[422659219,1779219041000,-956.0,0.00014452,2]
[422659217,1779219041000,-551.0,0.00014452,2]
[422659185,1779219041000,-551.0,0.00014452,2]
[422659204,1779219041000,-500.0,0.00014452,2]
[422659186,1779219041000,-551.0,0.00014452,2]
[422659151,1779219041000,-500.0,0.00014452,2]
[422659188,1779219041000,-551.0,0.00014452,2]
[422659150,1779219041000,-243.29992318,0.00014452,2]
[422659153,1779219041000,-500.0,0.00014452,2]
[422659218,1779219041000,-956.0,0.00014452,2]
[422659159,1779219041000,-500.0,0.00014452,2]
[422659152,1779219041000,-154.4434751,0.00014452,2]
[422659157,1779219041000,-500.0,0.00014452,2]
[422659155,1779219041000,-500.0,0.00014452,2]
[422659162,1779219041000,-150.0,0.00014452,2]
[422659154,1779219041000,-500.0,0.00014452,2]
[422659161,1779219041000,-170.8176538,0.00014452,2]
[422659158,1779219041000,-500.0,0.00014452,2]
[422659160,1779219041000,-500.0,0.00014452,2]
[422659163,1779219041000,-276.20852031,0.00014452,2]
[422659165,1779219041000,-500.0,0.00014452,2]
[422659187,1779219041000,-551.0,0.00014452,2]
[422659178,1779219041000,-551.0,0.00014452,2]
[422659179,1779219041000,-551.0,0.00014452,2]
[422659177,1779219041000,-551.0,0.00014452,2]
[422659169,1779219041000,-506.44330256,0.00014452,2]
[422659171,1779219041000,-551.0,0.00014452,2]
[422659175,1779219041000,-551.0,0.00014452,2]
[422659173,1779219041000,-551.0,0.00014452,2]
[422659172,1779219041000,-551.0,0.00014452,2]
[422659176,1779219041000,-551.0,0.00014452,2]
[422659174,1779219041000,-551.0,0.00014452,2]
[422659170,1779219041000,-275.90692005,0.00014452,2]
[422659180,1779219041000,-551.0,0.00014452,2]
[422659182,1779219041000,-551.0,0.00014452,2]
[422659181,1779219041000,-551.0,0.00014452,2]
[422659192,1779219041000,-500.0,0.00014452,2]
[422659167,1779219041000,-500.0,0.00014452,2]
[422659216,1779219041000,-956.0,0.00014452,2]
[422659212,1779219041000,-956.0,0.00014452,2]
[422659282,1779219041000,-11148.90812242,0.00014889,2]
[422659254,1779219041000,-150.0,0.00014709,2]
[422659255,1779219041000,-291.486,0.00014723,2]
[422659256,1779219041000,-417.0,0.0001474,2]
[422659258,1779219041000,-150.0,0.00014764,2]
[422659253,1779219041000,-1816.44057439,0.000147,2]
[422659257,1779219041000,-417.0,0.00014751,2]
[422659261,1779219041000,-398.0,0.00014812,2]
[422659263,1779219041000,-150.0,0.0001482,2]
[422659262,1779219041000,-150.0,0.0001482,2]
[422659273,1779219041000,-410.0,0.00014877,2]
[422659264,1779219041000,-411.63170782,0.00014832,2]
[422659266,1779219041000,-21091.19165994,0.0001485,2]
[422659268,1779219041000,-162.1984,0.0001485,2]
[422659272,1779219041000,-150.0,0.00014875,2]
[422659252,1779219041000,-5398.074,0.00014697,2]
[422659267,1779219041000,-162.19839,0.0001485,2]
[422659271,1779219041000,-166.81,0.00014872,2]
[422659270,1779219041000,-348.0,0.00014855,2]
[422659274,1779219041000,-1441.95848888,0.00014877,2]
[422659276,1779219041000,-430.23839519,0.00014877,2]
[422659275,1779219041000,-830.05666576,0.00014877,2]
[422659277,1779219041000,-11148.90812242,0.00014877,2]
[422659280,1779219041000,-830.05666575,0.00014889,2]
[422659284,1779219041000,-402.44586272,0.000149,2]
[422659279,1779219041000,-1441.95848886,0.00014889,2]
[422659283,1779219041000,-410.0,0.00014893,2]
[422659281,1779219041000,-430.23839517,0.00014889,2]
[422659220,1779219041000,-500.0,0.00014452,2]
[422659278,1779219041000,-200.0,0.00014879,2]
[422659285,1779219041000,-10000.0,0.000149,2]
[422659265,1779219041000,-410.0,0.00014843,2]
[422659251,1779219041000,-500.0,0.00014685,2]
[422659269,1779219041000,-200.0,0.0001485,2]
[422659260,1779219041000,-465.0,0.0001479,2]
[422659221,1779219041000,-956.0,0.00014452,2]
[422659248,1779219041000,-150.0,0.00014653,2]
[422659223,1779219041000,-535.59562921,0.00014452,2]
[422659228,1779219041000,-956.0,0.00014452,2]
[422659232,1779219041000,-956.0,0.00014452,2]
[422659230,1779219041000,-956.0,0.00014452,2]
[422659227,1779219041000,-570.26937202,0.00014452,2]
[422659229,1779219041000,-956.0,0.00014452,2]
[422659225,1779219041000,-956.0,0.00014452,2]
[422659224,1779219041000,-956.0,0.00014452,2]
[422659231,1779219041000,-956.0,0.00014452,2]
[422659226,1779219041000,-956.0,0.00014452,2]
[422659233,1779219041000,-978.32072828,0.00014452,2]
[422659234,1779219041000,-150.0,0.00014487,2]
[422659236,1779219041000,-150.0,0.00014487,2]
[422659222,1779219041000,-956.0,0.00014452,2]
[422659239,1779219041000,-150.0,0.00014558,2]
[422659235,1779219041000,-150.0,0.00014487,2]
[422659249,1779219041000,-150.0,0.00014653,2]
[422659247,1779219041000,-4930.26743241,0.00014647,2]
[422659241,1779219041000,-150.0,0.00014598,2]
[422659242,1779219041000,-500.0,0.0001461,2]
[422659244,1779219041000,-2000.0,0.00014626,2]
[422659259,1779219041000,-150.0,0.00014772,2]
[422659245,1779219041000,-5000.0,0.00014626,2]
[422659237,1779219041000,-529.63722189,0.0001452,2]
[422659243,1779219041000,-150.0,0.00014612,2]
[422659250,1779219041000,-500.0,0.00014658,2]
[422659246,1779219041000,-27915.4960947,0.00014636,2]
[422659240,1779219041000,-15379.88741476,0.00014574,2]
[422659238,1779219041000,-150.0,0.00014542,2]
[422659322,1779219042000,-500.0,0.00014976,2]
[422659328,1779219042000,-500.0,0.00014976,2]
[422659315,1779219042000,-500.0,0.00014976,2]
[422659319,1779219042000,-500.0,0.00014976,2]
[422659317,1779219042000,-500.0,0.00014976,2]
[422659321,1779219042000,-500.0,0.00014976,2]
[422659325,1779219042000,-500.0,0.00014976,2]
[422659330,1779219042000,-3043.0,0.00014977,5]
[422659326,1779219042000,-500.0,0.00014976,2]
[422659327,1779219042000,-500.0,0.00014976,2]
[422659329,1779219042000,-500.0,0.00014976,2]
[422659337,1779219042000,-50679.2993202,0.00014977,2]
[422659316,1779219042000,-500.0,0.00014976,2]
[422659338,1779219042000,-2401.8,0.00014983,2]
[422659332,1779219042000,-21297.8016489,0.00014977,2]
[422659335,1779219042000,-16338.2636828,0.00014977,2]
[422659333,1779219042000,-366086.4116999,0.00014977,2]
[422659336,1779219042000,-185694.7602604,0.00014977,2]
[422659334,1779219042000,-900882.6810008,0.00014977,2]
[422659339,1779219042000,-284.58525916,0.00014986,2]
[422659340,1779219042000,-152.10400649,0.00014986,2]
[422659341,1779219042000,-152.75252403,0.00014986,2]
[422659345,1779219042000,-254.67783396,0.00014986,2]
[422659349,1779219042000,-151.0,0.00014997,2]
[422659350,1779219042000,-292.55428223,0.00014999,2]
[422659342,1779219042000,-225.67224447,0.00014986,2]
[422659320,1779219042000,-500.0,0.00014976,2]
[422659331,1779219042000,-172990.1034531,0.00014977,2]
[422659318,1779219042000,-500.0,0.00014976,2]
[422659343,1779219042000,-153.99235667,0.00014986,2]
[422659324,1779219042000,-500.0,0.00014976,2]
[422659286,1779219042000,-529.63722189,0.000149,2]
[422659287,1779219042000,-3467.0,0.000149,5]
[422659289,1779219042000,-15379.88741476,0.000149,2]
[422659288,1779219042000,-1841.27884536,0.000149,2]
[422659290,1779219042000,-4930.26743241,0.000149,2]
[422659291,1779219042000,-1441.95848886,0.000149,2]
[422659292,1779219042000,-830.05666575,0.000149,2]
[422659293,1779219042000,-430.23839517,0.000149,2]
[422659296,1779219042000,-410.0,0.00014922,2]
[422659295,1779219042000,-27915.4960947,0.000149,2]
[422659294,1779219042000,-11148.90812242,0.000149,2]
[422659297,1779219042000,-150.0,0.00014931,2]
[422659298,1779219042000,-398.0,0.00014939,2]
[422659314,1779219042000,-500.0,0.00014976,2]
[422659299,1779219042000,-417.0,0.00014947,2]
[422659302,1779219042000,-421.0,0.00014956,2]
[422659304,1779219042000,-476.51109628,0.00014967,2]
[422659306,1779219042000,-500.0,0.00014976,2]
[422659305,1779219042000,-1202.3961238,0.00014967,2]
[422659309,1779219042000,-500.0,0.00014976,2]
[422659308,1779219042000,-500.0,0.00014976,2]
[422659310,1779219042000,-500.0,0.00014976,2]
[422659307,1779219042000,-500.0,0.00014976,2]
[422659301,1779219042000,-338.0,0.00014949,2]
[422659311,1779219042000,-500.0,0.00014976,2]
[422659313,1779219042000,-500.0,0.00014976,2]
[422659323,1779219042000,-500.0,0.00014976,2]
[422659312,1779219042000,-500.0,0.00014976,2]
[422659303,1779219042000,-500.0,0.00014959,2]
[422659344,1779219042000,-170.41262241,0.00014986,2]
[422659300,1779219042000,-410.0,0.00014948,2]
[422659348,1779219042000,-476.51109628,0.0001499,2]
[422659381,1779219042000,-500.0,0.00014999,2]
[422659387,1779219042000,-500.0,0.00014999,2]
[422659385,1779219042000,-500.0,0.00014999,2]
[422659383,1779219042000,-500.0,0.00014999,2]
[422659382,1779219042000,-500.0,0.00014999,2]
[422659384,1779219042000,-500.0,0.00014999,2]
[422659386,1779219042000,-500.0,0.00014999,2]
[422659388,1779219042000,-500.0,0.00014999,2]
[422659392,1779219042000,-500.0,0.00014999,2]
[422659393,1779219042000,-500.0,0.00014999,2]
[422659391,1779219042000,-500.0,0.00014999,2]
[422659395,1779219042000,-500.0,0.00014999,2]
[422659398,1779219042000,-300.0,0.00014999,2]
[422659390,1779219042000,-500.0,0.00014999,2]
[422659396,1779219042000,-500.0,0.00014999,2]
[422659402,1779219042000,-300.0,0.00014999,2]
[422659403,1779219042000,-666.0,0.00014999,2]
[422659404,1779219042000,-300.0,0.00014999,2]
[422659401,1779219042000,-300.0,0.00014999,2]
[422659397,1779219042000,-300.0,0.00014999,2]
[422659400,1779219042000,-248.58448134,0.00014999,2]
[422659399,1779219042000,-666.0,0.00014999,2]
[422659406,1779219042000,-394.54452703,0.00014999,2]
[422659408,1779219042000,-666.0,0.00014999,2]
[422659407,1779219042000,-300.0,0.00014999,2]
[422659405,1779219042000,-300.0,0.00014999,2]
[422659409,1779219042000,-1678759.52813671,0.00015,2]
[422659347,1779219042000,-18397.64,0.0001499,2]
[422659394,1779219042000,-195.76615637,0.00014999,2]
[422659380,1779219042000,-500.0,0.00014999,2]
[422659389,1779219042000,-500.0,0.00014999,2]
[422659378,1779219042000,-500.0,0.00014999,2]
[422659346,1779219042000,-222.13151757,0.00014986,2]
[422659352,1779219042000,-500.0,0.00014999,2]
[422659362,1779219042000,-500.0,0.00014999,2]
[422659363,1779219042000,-500.0,0.00014999,2]
[422659351,1779219042000,-500.0,0.00014999,2]
[422659355,1779219042000,-500.0,0.00014999,2]
[422659354,1779219042000,-500.0,0.00014999,2]
[422659360,1779219042000,-500.0,0.00014999,2]
[422659353,1779219042000,-500.0,0.00014999,2]
[422659358,1779219042000,-500.0,0.00014999,2]
[422659379,1779219042000,-500.0,0.00014999,2]
[422659356,1779219042000,-519.65473575,0.00014999,2]
[422659357,1779219042000,-580.58046492,0.00014999,2]